[Event "*** SCC Grand Prix: Titled Tuesday Blitz"]
[Site "Chess.com"]
[Date "2020.08.25"]
[Round "8"]
[White "ErikBlomqvist"]
[Black "AGW2016"]
[Result "1-0"]
[WhiteElo "2513"]
[BlackElo "2362"]
[TimeControl "180+1"]
[EndTime "11:32:46 PDT"]
[Termination "ErikBlomqvist won by resignation"]

1. e4 {[%clk 0:03:00.9]} 1... c5 {[%clk 0:03:00]} 2. Nf3 {[%clk 0:02:59]} 2...
d6 {[%clk 0:03:00.1]} 3. d4 {[%clk 0:02:59.1]} 3... cxd4 {[%clk 0:03:01]} 4.
Qxd4 {[%clk 0:02:59.8]} 4... a6 {[%clk 0:03:00]} 5. Be2 {[%clk 0:03:00]} 5...
Nc6 {[%clk 0:03:00.4]} 6. Qe3 {[%clk 0:03:00.7]} 6... Nf6 {[%clk 0:02:59.8]} 7.
O-O {[%clk 0:03:01.2]} 7... Bg4 {[%clk 0:02:57.2]} 8. Rd1 {[%clk 0:03:00.5]}
8... Bxf3 {[%clk 0:02:54.1]} 9. Bxf3 {[%clk 0:03:01.4]} 9... e6 {[%clk
0:02:54.8]} 10. c4 {[%clk 0:02:59.5]} 10... Qc7 {[%clk 0:02:52.2]} 11. b3 {[%clk
0:02:56.8]} 11... Be7 {[%clk 0:02:51.8]} 12. Nc3 {[%clk 0:02:55.3]} 12... O-O
{[%clk 0:02:51.8]} 13. Bb2 {[%clk 0:02:55.7]} 13... Rab8 {[%clk 0:02:51.2]} 14.
Rac1 {[%clk 0:02:56]} 14... Rfd8 {[%clk 0:02:49.4]} 15. Nd5 {[%clk 0:02:52.4]}
15... exd5 {[%clk 0:02:34.8]} 16. cxd5 {[%clk 0:02:53.3]} 16... Qa5 {[%clk
0:02:35.1]} 17. dxc6 {[%clk 0:02:53.2]} 17... bxc6 {[%clk 0:02:36]} 18. e5
{[%clk 0:02:40.3]} 18... dxe5 {[%clk 0:02:30]} 19. Bxe5 {[%clk 0:02:29]} 19...
Rxd1+ {[%clk 0:02:27.1]} 20. Rxd1 {[%clk 0:02:29.9]} 20... Rd8 {[%clk
0:02:25.8]} 21. Bc3 {[%clk 0:02:18.9]} 21... Rxd1+ {[%clk 0:02:07]} 22. Bxd1
{[%clk 0:02:19.8]} 22... Bb4 {[%clk 0:01:57.3]} 23. Qf4 {[%clk 0:01:59]} 23...
Nd7 {[%clk 0:01:36.8]} 24. Bxb4 {[%clk 0:01:49.8]} 1-0

[Event "*** SCC Grand Prix: Titled Tuesday Blitz"]
[Site "Chess.com"]
[Date "2020.08.25"]
[Round "8"]
[White "StephenDedalus83"]
[Black "AlexSuv"]
[Result "0-1"]
[WhiteElo "2713"]
[BlackElo "2500"]
[TimeControl "180+1"]
[EndTime "11:32:49 PDT"]
[Termination "AlexSuv won by resignation"]

1. e4 {[%clk 0:03:00.9]} 1... c5 {[%clk 0:02:47.7]} 2. Nf3 {[%clk 0:03:00.7]}
2... e6 {[%clk 0:02:47.8]} 3. Nd4 {[%clk 0:02:59]} 3... cxd4 {[%clk 0:02:48.7]}
4. c3 {[%clk 0:02:51.9]} 4... Nc6 {[%clk 0:02:43]} 5. Bb5 {[%clk 0:02:50.4]}
5... Nf6 {[%clk 0:02:40.6]} 6. e5 {[%clk 0:02:23.5]} 6... Nxe5 {[%clk
0:02:38.7]} 7. O-O {[%clk 0:02:22.6]} 7... dxc3 {[%clk 0:02:33.7]} 8. bxc3
{[%clk 0:02:21.8]} 8... Be7 {[%clk 0:02:32.7]} 9. d4 {[%clk 0:02:20.9]} 9... Nc6
{[%clk 0:02:33.2]} 10. Bd3 {[%clk 0:02:20.4]} 10... O-O {[%clk 0:02:33.2]} 11.
Nd2 {[%clk 0:02:20.3]} 11... d6 {[%clk 0:02:30.1]} 12. Nf3 {[%clk 0:02:20.2]}
12... e5 {[%clk 0:02:30.2]} 13. Be2 {[%clk 0:01:57.3]} 13... Bg4 {[%clk
0:02:26.3]} 14. h3 {[%clk 0:01:56.6]} 14... Bh5 {[%clk 0:02:26.1]} 15. d5 {[%clk
0:01:56.1]} 15... Na5 {[%clk 0:02:23.9]} 16. Be3 {[%clk 0:01:55.6]} 16... b6
{[%clk 0:02:21]} 17. c4 {[%clk 0:01:54.4]} 17... Rc8 {[%clk 0:02:20.9]} 18. Rc1
{[%clk 0:01:53.7]} 18... Ne4 {[%clk 0:02:18.5]} 19. g4 {[%clk 0:01:50.8]} 19...
Bg6 {[%clk 0:02:17.8]} 20. Ne1 {[%clk 0:01:50.2]} 20... f5 {[%clk 0:02:15.7]}
21. f3 {[%clk 0:01:47.3]} 21... Ng3 {[%clk 0:02:15.7]} 22. Rf2 {[%clk
0:01:46.8]} 22... fxg4 {[%clk 0:02:12.5]} 23. hxg4 {[%clk 0:01:46.2]} 23...
Nxe2+ {[%clk 0:02:12.7]} 24. Qxe2 {[%clk 0:01:46.1]} 24... Bg5 {[%clk
0:02:04.4]} 25. Ng2 {[%clk 0:01:45.9]} 25... Bxe3 {[%clk 0:02:02.1]} 26. Nxe3
{[%clk 0:01:45.8]} 26... Qg5 {[%clk 0:02:02.3]} 27. Kg2 {[%clk 0:01:44]} 27...
e4 {[%clk 0:01:57.7]} 0-1

[Event "*** SCC Grand Prix: Titled Tuesday Blitz"]
[Site "Chess.com"]
[Date "2020.08.25"]
[Round "8"]
[White "aNaartjieZA"]
[Black "Jungle_Jaguar"]
[Result "0-1"]
[WhiteElo "2465"]
[BlackElo "2634"]
[TimeControl "180+1"]
[EndTime "11:33:12 PDT"]
[Termination "Jungle_Jaguar won by resignation"]

1. e4 {[%clk 0:03:00.9]} 1... e5 {[%clk 0:03:00.4]} 2. Nf3 {[%clk 0:03:00.8]}
2... Nc6 {[%clk 0:03:00.9]} 3. Bc4 {[%clk 0:03:01.3]} 3... Nf6 {[%clk
0:03:00.6]} 4. d3 {[%clk 0:03:01.5]} 4... Bc5 {[%clk 0:03:00.4]} 5. O-O {[%clk
0:03:01.6]} 5... d6 {[%clk 0:02:58.8]} 6. c3 {[%clk 0:03:01.2]} 6... a6 {[%clk
0:02:59.1]} 7. Bb3 {[%clk 0:03:01.1]} 7... Ba7 {[%clk 0:02:57.7]} 8. Nbd2 {[%clk
0:03:00.7]} 8... O-O {[%clk 0:02:57.9]} 9. h3 {[%clk 0:03:00.6]} 9... h6 {[%clk
0:02:57.2]} 10. Re1 {[%clk 0:03:00.5]} 10... Re8 {[%clk 0:02:57.7]} 11. Nf1
{[%clk 0:02:59.4]} 11... Be6 {[%clk 0:02:58.3]} 12. Ng3 {[%clk 0:02:59.3]} 12...
Qd7 {[%clk 0:02:48.8]} 13. Bxe6 {[%clk 0:02:58.2]} 13... Qxe6 {[%clk 0:02:47.5]}
14. Nh4 {[%clk 0:02:57.9]} 14... d5 {[%clk 0:02:46.5]} 15. Qf3 {[%clk
0:02:57.7]} 15... dxe4 {[%clk 0:02:39.9]} 16. dxe4 {[%clk 0:02:57.3]} 16... Ne7
{[%clk 0:02:37.4]} 17. Nhf5 {[%clk 0:02:55.8]} 17... Ng6 {[%clk 0:02:25.9]} 18.
h4 {[%clk 0:02:50.9]} 18... Rad8 {[%clk 0:02:24.9]} 19. h5 {[%clk 0:02:50.5]}
19... Nf8 {[%clk 0:02:25]} 20. Nxh6+ {[%clk 0:02:37.1]} 20... gxh6 {[%clk
0:02:23.8]} 21. Nf5 {[%clk 0:02:36.8]} 21... Kh8 {[%clk 0:02:05.5]} 22. Bxh6
{[%clk 0:02:33.7]} 22... N8h7 {[%clk 0:02:05.6]} 23. Bg7+ {[%clk 0:02:31]} 23...
Kg8 {[%clk 0:02:05.7]} 24. Qg3 {[%clk 0:02:06.9]} 24... Nxh5 {[%clk 0:02:05.2]}
25. Qg4 {[%clk 0:02:06.5]} 25... Qg6 {[%clk 0:02:03.8]} 26. Qh3 {[%clk
0:01:33.5]} 26... Nxg7 {[%clk 0:02:02.1]} 27. Nh6+ {[%clk 0:01:33.4]} 27... Kf8
{[%clk 0:02:01.2]} 28. Rad1 {[%clk 0:01:32.1]} 28... Rxd1 {[%clk 0:01:55.8]} 29.
Rxd1 {[%clk 0:01:31.9]} 29... Ng5 {[%clk 0:01:56.5]} 0-1

[Event "*** SCC Grand Prix: Titled Tuesday Blitz"]
[Site "Chess.com"]
[Date "2020.08.25"]
[Round "8"]
[White "Pikachess999"]
[Black "pastouche06"]
[Result "1/2-1/2"]
[WhiteElo "2401"]
[BlackElo "2509"]
[TimeControl "180+1"]
[EndTime "11:33:17 PDT"]
[Termination "Game drawn by agreement"]

1. e4 {[%clk 0:03:00.9]} 1... c6 {[%clk 0:02:59.9]} 2. d4 {[%clk 0:03:00.5]}
2... d5 {[%clk 0:03:00.5]} 3. Nc3 {[%clk 0:03:01.4]} 3... dxe4 {[%clk
0:03:00.6]} 4. Nxe4 {[%clk 0:03:02.3]} 4... Nf6 {[%clk 0:03:01.1]} 5. Nxf6+
{[%clk 0:03:02.5]} 5... exf6 {[%clk 0:03:02]} 6. c3 {[%clk 0:03:02.5]} 6... Bd6
{[%clk 0:03:02.4]} 7. Bd3 {[%clk 0:03:02.7]} 7... O-O {[%clk 0:03:03]} 8. Qc2
{[%clk 0:03:02.8]} 8... Re8+ {[%clk 0:03:03.3]} 9. Ne2 {[%clk 0:03:03.3]} 9...
h5 {[%clk 0:03:03.9]} 10. O-O {[%clk 0:03:03.4]} 10... h4 {[%clk 0:03:03.8]} 11.
Bf4 {[%clk 0:03:03.9]} 11... Na6 {[%clk 0:03:03.8]} 12. Qd2 {[%clk 0:02:56.1]}
12... Nc7 {[%clk 0:03:03]} 13. Bxd6 {[%clk 0:02:56.1]} 13... Qxd6 {[%clk
0:03:03.9]} 14. Qf4 {[%clk 0:02:56.7]} 14... Qxf4 {[%clk 0:02:47.4]} 15. Nxf4
{[%clk 0:02:57.6]} 15... Ne6 {[%clk 0:02:42]} 16. Rfe1 {[%clk 0:02:51.8]} 16...
Bd7 {[%clk 0:02:41.5]} 17. Nxe6 {[%clk 0:02:45.6]} 17... Bxe6 {[%clk 0:02:38.7]}
18. f3 {[%clk 0:02:45.9]} 18... Bd7 {[%clk 0:02:24.5]} 19. Kf2 {[%clk
0:02:44.2]} 19... g5 {[%clk 0:02:21.4]} 20. a4 {[%clk 0:02:28.2]} 20... Kf8
{[%clk 0:01:58.2]} 21. a5 {[%clk 0:02:27.2]} 21... Rxe1 {[%clk 0:01:56.9]} 22.
Rxe1 {[%clk 0:02:26.3]} 22... Re8 {[%clk 0:01:57.4]} 23. Ra1 {[%clk 0:02:16.7]}
23... Be6 {[%clk 0:01:45.4]} 24. Ra4 {[%clk 0:02:10.3]} 24... Rd8 {[%clk
0:01:31.7]} 25. Bc4 {[%clk 0:01:36.5]} 25... Ke7 {[%clk 0:01:28]} 1/2-1/2

[Event "*** SCC Grand Prix: Titled Tuesday Blitz"]
[Site "Chess.com"]
[Date "2020.08.25"]
[Round "8"]
[White "Balla_Tamas"]
[Black "vovachesss"]
[Result "0-1"]
[WhiteElo "2452"]
[BlackElo "2583"]
[TimeControl "180+1"]
[EndTime "11:33:45 PDT"]
[Termination "vovachesss won by resignation"]

1. e4 {[%clk 0:02:58.2]} 1... g6 {[%clk 0:02:35.4]} 2. d4 {[%clk 0:02:53.3]}
2... Bg7 {[%clk 0:02:36]} 3. Bc4 {[%clk 0:02:52.8]} 3... b6 {[%clk 0:02:35.9]}
4. Nf3 {[%clk 0:02:51.7]} 4... Bb7 {[%clk 0:02:36.4]} 5. Qe2 {[%clk 0:02:28]}
5... e6 {[%clk 0:02:22.6]} 6. Bb3 {[%clk 0:02:25.9]} 6... c5 {[%clk 0:02:20.5]}
7. c3 {[%clk 0:02:25.4]} 7... Ne7 {[%clk 0:02:19.5]} 8. O-O {[%clk 0:02:24.4]}
8... O-O {[%clk 0:02:19.7]} 9. Rd1 {[%clk 0:02:16.3]} 9... cxd4 {[%clk
0:02:17.6]} 10. cxd4 {[%clk 0:02:15.9]} 10... d6 {[%clk 0:02:14.3]} 11. Nc3
{[%clk 0:02:14.1]} 11... Nbc6 {[%clk 0:02:14.2]} 12. d5 {[%clk 0:02:11.6]} 12...
exd5 {[%clk 0:02:09.3]} 13. Nxd5 {[%clk 0:02:11.8]} 13... Na5 {[%clk 0:02:05.4]}
14. Nxe7+ {[%clk 0:02:09.1]} 14... Qxe7 {[%clk 0:02:06.3]} 15. Bd5 {[%clk
0:02:09.3]} 15... Rae8 {[%clk 0:02:02.6]} 16. Bf4 {[%clk 0:01:56.6]} 16... Bxd5
{[%clk 0:02:00.3]} 17. Rxd5 {[%clk 0:01:56.2]} 17... Qxe4 {[%clk 0:02:00.4]} 18.
Qxe4 {[%clk 0:01:56.7]} 18... Rxe4 {[%clk 0:02:01.3]} 19. Bxd6 {[%clk
0:01:57.2]} 19... Rd8 {[%clk 0:02:00]} 20. Rad1 {[%clk 0:01:48.4]} 20... Bxb2
{[%clk 0:01:59.6]} 21. Bc7 {[%clk 0:01:39.6]} 21... Rxd5 {[%clk 0:01:57.8]} 22.
Rxd5 {[%clk 0:01:40.5]} 22... Rc4 {[%clk 0:01:56]} 0-1

[Event "*** SCC Grand Prix: Titled Tuesday Blitz"]
[Site "Chess.com"]
[Date "2020.08.25"]
[Round "8"]
[White "ExtremeLearner"]
[Black "Rytenko_V"]
[Result "0-1"]
[WhiteElo "2397"]
[BlackElo "2518"]
[TimeControl "180+1"]
[EndTime "11:33:54 PDT"]
[Termination "Rytenko_V won by resignation"]

1. d4 {[%clk 0:03:00.9]} 1... Nf6 {[%clk 0:02:56.8]} 2. Nf3 {[%clk 0:03:00.9]}
2... g6 {[%clk 0:02:56.6]} 3. g3 {[%clk 0:02:59.6]} 3... Bg7 {[%clk 0:02:57.1]}
4. Bg2 {[%clk 0:03:00.2]} 4... O-O {[%clk 0:02:58]} 5. O-O {[%clk 0:03:00.8]}
5... d6 {[%clk 0:02:58.3]} 6. b3 {[%clk 0:03:01.2]} 6... Nc6 {[%clk 0:02:58.7]}
7. Bb2 {[%clk 0:03:00.9]} 7... a5 {[%clk 0:02:58.2]} 8. c4 {[%clk 0:03:00.4]}
8... a4 {[%clk 0:02:56.4]} 9. Nc3 {[%clk 0:02:57.6]} 9... a3 {[%clk 0:02:55.5]}
10. Bc1 {[%clk 0:02:57.4]} 10... e5 {[%clk 0:02:56]} 11. Bg5 {[%clk 0:02:54.4]}
11... h6 {[%clk 0:02:40.4]} 12. Bxf6 {[%clk 0:02:45.7]} 12... Bxf6 {[%clk
0:02:40]} 13. e3 {[%clk 0:02:44.8]} 13... exd4 {[%clk 0:02:37.8]} 14. exd4
{[%clk 0:02:39.9]} 14... Bg4 {[%clk 0:02:36.6]} 15. Ne2 {[%clk 0:02:38.3]} 15...
Re8 {[%clk 0:02:33.5]} 16. h3 {[%clk 0:02:32.9]} 16... Rxe2 {[%clk 0:02:33.2]}
17. hxg4 {[%clk 0:01:35.8]} 17... Qe7 {[%clk 0:02:21.6]} 18. Ne5 {[%clk
0:01:24]} 18... Nxd4 {[%clk 0:01:57.8]} 19. Qxd4 {[%clk 0:01:20.3]} 19... Bxe5
{[%clk 0:01:56.7]} 20. Qd3 {[%clk 0:01:10.7]} 20... Bxa1 {[%clk 0:01:55.9]} 21.
Rxa1 {[%clk 0:01:11.6]} 21... Re1+ {[%clk 0:01:56]} 22. Rxe1 {[%clk 0:01:10.3]}
22... Qxe1+ {[%clk 0:01:56.9]} 23. Kh2 {[%clk 0:01:11.2]} 23... Qxf2 {[%clk
0:01:56.2]} 24. Qd5 {[%clk 0:01:07.8]} 24... Re8 {[%clk 0:01:54.8]} 25. Qxb7
{[%clk 0:01:06.2]} 25... Re2 {[%clk 0:01:54.2]} 26. Kh3 {[%clk 0:01:03.4]} 26...
Rxa2 {[%clk 0:01:37.8]} 0-1

[Event "*** SCC Grand Prix: Titled Tuesday Blitz"]
[Site "Chess.com"]
[Date "2020.08.25"]
[Round "8"]
[White "ZarinaShafigullina"]
[Black "brute4ever"]
[Result "0-1"]
[WhiteElo "2313"]
[BlackElo "2505"]
[TimeControl "180+1"]
[EndTime "11:34:11 PDT"]
[Termination "brute4ever won by resignation"]

1. d4 {[%clk 0:03:00.9]} 1... d5 {[%clk 0:02:57.9]} 2. Nf3 {[%clk 0:03:01.8]}
2... Nf6 {[%clk 0:02:57.3]} 3. g3 {[%clk 0:03:02.7]} 3... c6 {[%clk 0:02:56.4]}
4. Bg2 {[%clk 0:03:03.6]} 4... Bf5 {[%clk 0:02:57]} 5. O-O {[%clk 0:03:04.5]}
5... e6 {[%clk 0:02:57.7]} 6. c4 {[%clk 0:03:04.4]} 6... h6 {[%clk 0:02:58]} 7.
Nc3 {[%clk 0:03:03.7]} 7... Be7 {[%clk 0:02:58.4]} 8. Nd2 {[%clk 0:03:04.1]}
8... O-O {[%clk 0:02:56.7]} 9. e4 {[%clk 0:03:04.6]} 9... dxe4 {[%clk
0:02:57.2]} 10. Ndxe4 {[%clk 0:03:04.4]} 10... Nbd7 {[%clk 0:02:57.4]} 11. Be3
{[%clk 0:02:54.2]} 11... Nxe4 {[%clk 0:02:52.2]} 12. Nxe4 {[%clk 0:02:54.4]}
12... Nf6 {[%clk 0:02:52.5]} 13. Nc3 {[%clk 0:02:54.9]} 13... Rc8 {[%clk
0:02:51.2]} 14. Qb3 {[%clk 0:02:51.9]} 14... Qd7 {[%clk 0:02:47.1]} 15. Rac1
{[%clk 0:02:46.6]} 15... a6 {[%clk 0:02:40.7]} 16. Rfd1 {[%clk 0:02:46.3]} 16...
b5 {[%clk 0:02:40.5]} 17. d5 {[%clk 0:02:21.9]} 17... bxc4 {[%clk 0:02:22.8]}
18. dxc6 {[%clk 0:02:21.5]} 18... Qxc6 {[%clk 0:02:16.3]} 19. Bxc6 {[%clk
0:02:07.5]} 19... cxb3 {[%clk 0:02:16]} 20. Bb7 {[%clk 0:02:07.8]} 20... Rb8
{[%clk 0:01:32.9]} 21. Bxa6 {[%clk 0:02:04.8]} 21... bxa2 {[%clk 0:01:33.3]} 22.
Nxa2 {[%clk 0:01:52.4]} 22... Rxb2 {[%clk 0:01:33.2]} 23. Nc3 {[%clk 0:01:52.1]}
23... Ra8 {[%clk 0:01:24.9]} 24. Bd3 {[%clk 0:01:50.4]} 24... Bg4 {[%clk
0:01:16.9]} 25. Rd2 {[%clk 0:01:47.3]} 25... Rxd2 {[%clk 0:01:00.1]} 26. Bxd2
{[%clk 0:01:47.2]} 26... Rd8 {[%clk 0:00:58.8]} 0-1

[Event "*** SCC Grand Prix: Titled Tuesday Blitz"]
[Site "Chess.com"]
[Date "2020.08.25"]
[Round "8"]
[White "TigrVShlyape"]
[Black "davidkalashian"]
[Result "1-0"]
[WhiteElo "2839"]
[BlackElo "2609"]
[TimeControl "180+1"]
[EndTime "11:34:16 PDT"]
[Termination "TigrVShlyape won by resignation"]

1. e4 {[%clk 0:03:00.9]} 1... c6 {[%clk 0:02:56]} 2. d3 {[%clk 0:02:59.5]} 2...
g6 {[%clk 0:02:56.1]} 3. Nf3 {[%clk 0:02:57.8]} 3... Bg7 {[%clk 0:02:56.5]} 4.
g3 {[%clk 0:02:58.1]} 4... d6 {[%clk 0:02:54.8]} 5. Bg2 {[%clk 0:02:57.7]} 5...
Nf6 {[%clk 0:02:55.3]} 6. O-O {[%clk 0:02:58]} 6... O-O {[%clk 0:02:55.7]} 7.
Nc3 {[%clk 0:02:57.5]} 7... b5 {[%clk 0:02:51.8]} 8. h3 {[%clk 0:02:43.2]} 8...
Bb7 {[%clk 0:02:47.7]} 9. Be3 {[%clk 0:02:40.9]} 9... Nbd7 {[%clk 0:02:44.3]}
10. Qd2 {[%clk 0:02:37.1]} 10... Re8 {[%clk 0:02:39.9]} 11. Rfe1 {[%clk
0:02:36.6]} 11... a5 {[%clk 0:02:34.3]} 12. Bh6 {[%clk 0:02:35.2]} 12... Bh8
{[%clk 0:02:32.9]} 13. Ng5 {[%clk 0:02:33.4]} 13... b4 {[%clk 0:02:22.7]} 14.
Nd1 {[%clk 0:02:28.5]} 14... c5 {[%clk 0:02:14]} 15. f4 {[%clk 0:02:23.7]} 15...
Qb6 {[%clk 0:01:58.6]} 16. Kh2 {[%clk 0:02:20.5]} 16... e6 {[%clk 0:01:50]} 17.
Ne3 {[%clk 0:02:18.2]} 17... Nh5 {[%clk 0:01:44.2]} 18. c3 {[%clk 0:01:58.8]}
18... f5 {[%clk 0:01:19.6]} 19. exf5 {[%clk 0:01:45.6]} 19... Bxg2 {[%clk
0:01:06.1]} 20. Qxg2 {[%clk 0:01:38.8]} 20... gxf5 {[%clk 0:00:59.9]} 21. Nxe6
{[%clk 0:01:35.6]} 21... Rxe6 {[%clk 0:00:40.3]} 22. Qxa8+ {[%clk 0:01:34.3]}
22... Qb8 {[%clk 0:00:40.8]} 23. Qd5 {[%clk 0:01:33.5]} 1-0

[Event "*** SCC Grand Prix: Titled Tuesday Blitz"]
[Site "Chess.com"]
[Date "2020.08.25"]
[Round "8"]
[White "Shuvalov"]
[Black "olksuna"]
[Result "0-1"]
[WhiteElo "2411"]
[BlackElo "2640"]
[TimeControl "180+1"]
[EndTime "11:34:22 PDT"]
[Termination "olksuna won by checkmate"]

1. Nf3 {[%clk 0:02:57.2]} 1... d5 {[%clk 0:02:58.8]} 2. c4 {[%clk 0:02:57.1]}
2... e6 {[%clk 0:02:57.2]} 3. g3 {[%clk 0:02:57]} 3... dxc4 {[%clk 0:02:52.9]}
4. Bg2 {[%clk 0:02:56.8]} 4... a6 {[%clk 0:02:52.7]} 5. a4 {[%clk 0:02:53.8]}
5... Nf6 {[%clk 0:02:51.9]} 6. O-O {[%clk 0:02:52.9]} 6... Nc6 {[%clk
0:02:52.5]} 7. Na3 {[%clk 0:02:47.2]} 7... Bxa3 {[%clk 0:02:50.1]} 8. bxa3
{[%clk 0:02:44.4]} 8... e5 {[%clk 0:02:50.5]} 9. Qc2 {[%clk 0:02:43]} 9... O-O
{[%clk 0:02:44.8]} 10. Qxc4 {[%clk 0:02:42]} 10... Be6 {[%clk 0:02:43.4]} 11.
Qc2 {[%clk 0:02:36.6]} 11... e4 {[%clk 0:02:37.2]} 12. Ng5 {[%clk 0:02:15.7]}
12... Nd4 {[%clk 0:02:15.4]} 13. Qb2 {[%clk 0:02:15.3]} 13... Nxe2+ {[%clk
0:02:12]} 14. Kh1 {[%clk 0:02:15.5]} 14... Bd5 {[%clk 0:01:54.6]} 15. Re1 {[%clk
0:02:09.1]} 15... h6 {[%clk 0:01:52]} 16. Nxe4 {[%clk 0:01:30.9]} 16... Bxe4
{[%clk 0:01:47.1]} 17. Bxe4 {[%clk 0:01:09.4]} 17... Nxe4 {[%clk 0:01:43.8]} 18.
Rxe2 {[%clk 0:01:09.8]} 18... Qd5 {[%clk 0:01:44.5]} 19. Kg1 {[%clk 0:00:36.4]}
19... Ng5 {[%clk 0:01:42.3]} 20. h4 {[%clk 0:00:19.7]} 20... Nf3+ {[%clk
0:01:40.2]} 21. Kf1 {[%clk 0:00:18]} 21... Nd4 {[%clk 0:01:40.3]} 22. Qxd4
{[%clk 0:00:09]} 22... Qh1# {[%clk 0:01:38.5]} 0-1

[Event "*** SCC Grand Prix: Titled Tuesday Blitz"]
[Site "Chess.com"]
[Date "2020.08.25"]
[Round "8"]
[White "killer311"]
[Black "Zq1"]
[Result "0-1"]
[WhiteElo "2486"]
[BlackElo "2538"]
[TimeControl "180+1"]
[EndTime "11:34:23 PDT"]
[Termination "Zq1 won by resignation"]

1. d4 {[%clk 0:03:00.9]} 1... Nf6 {[%clk 0:02:58.9]} 2. c4 {[%clk 0:03:00.2]}
2... a6 {[%clk 0:02:58.7]} 3. g3 {[%clk 0:02:57.8]} 3... c5 {[%clk 0:02:58.5]}
4. d5 {[%clk 0:02:56.7]} 4... b5 {[%clk 0:02:57.8]} 5. cxb5 {[%clk 0:02:57.3]}
5... axb5 {[%clk 0:02:55.4]} 6. Bg2 {[%clk 0:02:57.9]} 6... d6 {[%clk
0:02:52.1]} 7. Nf3 {[%clk 0:02:58]} 7... Bb7 {[%clk 0:02:40.6]} 8. Nh4 {[%clk
0:02:39.2]} 8... g6 {[%clk 0:02:35.7]} 9. O-O {[%clk 0:02:38.7]} 9... Bg7 {[%clk
0:02:35.9]} 10. a4 {[%clk 0:02:34.8]} 10... O-O {[%clk 0:02:33.8]} 11. Qb3
{[%clk 0:02:29.7]} 11... b4 {[%clk 0:02:25.6]} 12. e4 {[%clk 0:02:22.5]} 12...
Nbd7 {[%clk 0:02:21.3]} 13. Nd2 {[%clk 0:02:21.3]} 13... Ba6 {[%clk 0:02:15]}
14. Re1 {[%clk 0:02:20.9]} 14... Ng4 {[%clk 0:02:11.9]} 15. Nc4 {[%clk
0:02:03.8]} 15... Bd4 {[%clk 0:01:50.4]} 16. Ne3 {[%clk 0:01:50.3]} 16... Nge5
{[%clk 0:01:26.8]} 17. Nf3 {[%clk 0:01:44.4]} 17... Rb8 {[%clk 0:01:09.7]} 18.
Nxd4 {[%clk 0:01:22]} 18... cxd4 {[%clk 0:01:09.6]} 19. Nd1 {[%clk 0:01:15.9]}
19... Nc5 {[%clk 0:01:04.5]} 20. Qc2 {[%clk 0:01:12]} 20... Bd3 {[%clk
0:00:55.1]} 21. Qd2 {[%clk 0:01:11.1]} 21... Nb3 {[%clk 0:00:54.3]} 22. Qh6
{[%clk 0:01:11.2]} 22... Nxa1 {[%clk 0:00:52.8]} 23. f4 {[%clk 0:01:11.4]} 23...
Ng4 {[%clk 0:00:50.5]} 24. Qh4 {[%clk 0:01:08.9]} 24... Nc2 {[%clk 0:00:48.7]}
0-1

[Event "*** SCC Grand Prix: Titled Tuesday Blitz"]
[Site "Chess.com"]
[Date "2020.08.25"]
[Round "8"]
[White "garicradomir"]
[Black "snowlord"]
[Result "0-1"]
[WhiteElo "2321"]
[BlackElo "2794"]
[TimeControl "180+1"]
[EndTime "11:34:25 PDT"]
[Termination "snowlord won by resignation"]

1. e4 {[%clk 0:03:00.9]} 1... d6 {[%clk 0:02:17.2]} 2. d4 {[%clk 0:02:58.4]}
2... Nf6 {[%clk 0:02:16.7]} 3. Nc3 {[%clk 0:02:57.6]} 3... e5 {[%clk 0:02:16.6]}
4. Nf3 {[%clk 0:02:57.2]} 4... Nbd7 {[%clk 0:02:16.1]} 5. Bc4 {[%clk 0:02:57.1]}
5... Be7 {[%clk 0:02:16.4]} 6. O-O {[%clk 0:02:56.5]} 6... O-O {[%clk
0:02:16.9]} 7. a4 {[%clk 0:02:56.6]} 7... c6 {[%clk 0:02:17.2]} 8. Re1 {[%clk
0:02:56.2]} 8... a5 {[%clk 0:02:17.2]} 9. Ba2 {[%clk 0:02:56.3]} 9... Qc7 {[%clk
0:02:13.3]} 10. Qd3 {[%clk 0:02:56.4]} 10... Nb8 {[%clk 0:02:00.8]} 11. h3
{[%clk 0:02:48.3]} 11... Na6 {[%clk 0:01:59.8]} 12. Bb3 {[%clk 0:02:39.3]} 12...
Nd7 {[%clk 0:01:58.2]} 13. Bg5 {[%clk 0:02:36.5]} 13... Bxg5 {[%clk 0:01:56.9]}
14. Nxg5 {[%clk 0:02:34.9]} 14... h6 {[%clk 0:01:57.2]} 15. Nf3 {[%clk
0:02:13.2]} 15... Nf6 {[%clk 0:01:56.1]} 16. Rad1 {[%clk 0:02:08.3]} 16... Nh5
{[%clk 0:01:53.6]} 17. Ne2 {[%clk 0:01:57.4]} 17... Qe7 {[%clk 0:01:44]} 18. Qc3
{[%clk 0:01:54.2]} 18... Re8 {[%clk 0:01:33.3]} 19. dxe5 {[%clk 0:01:28.9]}
19... dxe5 {[%clk 0:01:34.2]} 20. Nxe5 {[%clk 0:01:09.7]} 20... Qxe5 {[%clk
0:01:35.1]} 21. Rd8 {[%clk 0:01:06.4]} 21... Qe7 {[%clk 0:01:31.1]} 22. Rxe8+
{[%clk 0:00:49.7]} 22... Qxe8 {[%clk 0:01:32]} 23. g4 {[%clk 0:00:41.5]} 23...
Nf6 {[%clk 0:01:29.4]} 24. e5 {[%clk 0:00:37.1]} 24... Nd5 {[%clk 0:01:29.1]}
25. Qd4 {[%clk 0:00:33.7]} 25... Be6 {[%clk 0:01:26.5]} 0-1

[Event "*** SCC Grand Prix: Titled Tuesday Blitz"]
[Site "Chess.com"]
[Date "2020.08.25"]
[Round "8"]
[White "evgenyermolaev"]
[Black "Taron_Shagbazyan"]
[Result "0-1"]
[WhiteElo "2471"]
[BlackElo "2651"]
[TimeControl "180+1"]
[EndTime "11:34:26 PDT"]
[Termination "Taron_Shagbazyan won on time"]

1. d4 {[%clk 0:03:00.4]} 1... Nf6 {[%clk 0:02:59.5]} 2. Nc3 {[%clk 0:03:00.4]}
2... d5 {[%clk 0:02:58.5]} 3. Bf4 {[%clk 0:03:00.4]} 3... a6 {[%clk 0:02:56.4]}
4. Nf3 {[%clk 0:02:58.5]} 4... c5 {[%clk 0:02:56.1]} 5. e3 {[%clk 0:02:52.5]}
5... cxd4 {[%clk 0:02:55.5]} 6. exd4 {[%clk 0:02:50.9]} 6... Nc6 {[%clk
0:02:55.5]} 7. Bd3 {[%clk 0:02:39.1]} 7... Bg4 {[%clk 0:02:54.8]} 8. h3 {[%clk
0:02:34.7]} 8... Bxf3 {[%clk 0:02:49.6]} 9. Qxf3 {[%clk 0:02:33.8]} 9... Nxd4
{[%clk 0:02:48.1]} 10. Qe3 {[%clk 0:02:16]} 10... Ne6 {[%clk 0:02:38.7]} 11. Qd2
{[%clk 0:01:59]} 11... Nxf4 {[%clk 0:02:34.4]} 12. Qxf4 {[%clk 0:01:59.9]} 12...
e6 {[%clk 0:02:35]} 13. O-O-O {[%clk 0:01:53.5]} 13... Rc8 {[%clk 0:02:34.5]}
14. Rhe1 {[%clk 0:01:28.1]} 14... Bd6 {[%clk 0:02:31.6]} 15. Qg5 {[%clk
0:01:19]} 15... O-O {[%clk 0:02:30.1]} 16. f4 {[%clk 0:01:09.9]} 16... Rxc3
{[%clk 0:02:13.9]} 17. bxc3 {[%clk 0:01:08.5]} 17... Qc7 {[%clk 0:02:14.6]} 18.
Kb2 {[%clk 0:00:32.1]} 18... Rc8 {[%clk 0:01:42.3]} 19. c4 {[%clk 0:00:14.5]}
19... Bxf4 {[%clk 0:01:41.6]} 20. Qh4 {[%clk 0:00:10.6]} 20... dxc4 {[%clk
0:01:41.6]} 0-1